Workbook

Sheet Cells
A1: Gas Constant | B1: 8.31447 | C1: kJ/kmol×K | E1: ="Ideal gas density for "&B2 -> Ideal gas density for Air
A2: Substance | B2: Air | E2: Temperature | F2: Density
A3: Molar Mass | B3: =VLOOKUP(B2,molarMassTable,2,FALSE) -> 28.966 | C3: kg/kmol | E3: kelvins | F3: r(kg/m3)
A4: Pressure | B4: 101.325 | C4: kPa | E4: =B5 -> 300 | F4: =$B$4/($B$10*E4) -> 1.176655457
A5: Tmin | B5: 300 | C5: K | E5: =E4+$B$9 -> 400 | F5: =$B$4/($B$10*E5) -> 0.882491593
A6: Tmax | B6: 2500 | C6: K | E6: =E5+$B$9 -> 500 | F6: =$B$4/($B$10*E6) -> 0.7059932744
A7: Steps | B7: 22 | E7: 600 | F7: 0.5883277286
E8: 700 | F8: 0.5042809103
A9: deltaT | B9: =(B6-B5)/B7 -> 100 | C9: K | E9: 800 | F9: 0.4412457965
A10: EngrGasConst | B10: =B1/B3 -> 0.2870423945 | C10: kJ/kg×K | E10: 900 | F10: 0.3922184858
E11: 1000 | F11: 0.3529966372
E12: 1100 | F12: 0.3209060338
E13: 1200 | F13: 0.2941638643
E14: 1300 | F14: 0.2715358748
E15: 1400 | F15: 0.2521404551
E16: 1500 | F16: 0.2353310915
E17: 1600 | F17: 0.2206228982
E18: 1700 | F18: 0.2076450807
E19: 1800 | F19: 0.1961092429
E20: 1900 | F20: 0.1857877038
E21: 2000 | F21: 0.1764983186
E22: 2100 | F22: 0.1680936368
E23: 2200 | F23: 0.1604530169
E24: 2300 | F24: 0.1534767988
E25: 2400 | F25: 0.1470819322
E26: 2500 | F26: 0.1411986549

Sheet Names
A1: Gas Constant | B1: 8.31447 | C1: kJ/kmol×K
A2: Substance | B2: Air
A3: Molar Mass | B3: =VLOOKUP(Substance,molarMassTable,2,FALSE) -> 28.966 | C3: kg/kmol
A4: Pressure | B4: 101.325 | C4: kPa
A5: Tmin | B5: 300 | C5: K
A6: Tmax | B6: 2500 | C6: K
A7: Steps | B7: 22
A9: deltaT | B9: =(Tmax-Tmin)/Steps -> 100
A10: EngrGasConst | B10: =Gas_Constant/Molar_Mass -> 0.2870423945 | C10: kJ/kmol×K
B13: ="Ideal gas density for "&B2 -> Ideal gas density for Air
B14: T(K) | C14: r(kg/m3)
B15: =B5 -> 300 | C15: =Pressure/(EngrGasConst*B15) -> 1.176655457
B16: =B15+$B$9 -> 400 | C16: 0.882491593
B17: =B16+$B$9 -> 500 | C17: 0.7059932744
B18: 600 | C18: 0.5883277286
B19: 700 | C19: 0.5042809103
B20: 800 | C20: 0.4412457965
B21: 900 | C21: 0.3922184858
B22: 1000 | C22: 0.3529966372
B23: 1100 | C23: 0.3209060338
B24: 1200 | C24: 0.2941638643
B25: 1300 | C25: 0.2715358748
B26: 1400 | C26: 0.2521404551
B27: 1500 | C27: 0.2353310915
B28: 1600 | C28: 0.2206228982
B29: 1700 | C29: 0.2076450807
B30: 1800 | C30: 0.1961092429
B31: 1900 | C31: 0.1857877038
B32: 2000 | C32: 0.1764983186
B33: 2100 | C33: 0.1680936368
B34: 2200 | C34: 0.1604530169
B35: 2300 | C35: 0.1534767988
B36: 2400 | C36: 0.1470819322
B37: 2500 | C37: 0.1411986549

Sheet data (hidden)
A1: Name | B1: molarMass | C1: Formula | D1: molarMass
A2: Acetylene | B2: =2*C_+2*H -> 26.03728 | C2: C2H2 | D2: 26.04 | E2: C | F2: 12.0107
A3: Air | B3: 28.966 | C3: Air | D3: 28.966 | E3: H | F3: 1.00794
A4: Ammonia | B4: =N+3*H -> 17.03052 | C4: NH3 | D4: 17.02 | E4: N | F4: 14.0067 | H4: kg/m3
A5: Argon | B5: 39.948 | C5: Ar | D5: 39.948 | E5: O | F5: 15.9994
A6: Benzene | B6: =6*C_+6*H -> 78.11184 | C6: C6H6 | D6: 78.11 | E6: Cl | F6: 35.453
A7: Butadiene | B7: =4*C_+6*H -> 54.09044 | C7: C4H6 | D7: 54.09 | E7: S | F7: 32.065
A8: Butane | B8: =4*C_+10*H -> 58.1222 | C8: C4H10 | D8: 58.12 | E8: Kr | F8: 83.798
A9: Carbon Dioxide | B9: =C_+2*O -> 44.0095 | C9: CO2 | D9: 44.01 | E9: Ne | F9: 20.1797
A10: Carbon Monoxide | B10: =C_+O -> 28.0101 | C10: CO | D10: 28.011 | E10: Xe | F10: 131.293
A11: Chlorine | B11: =2*Cl -> 70.906 | C11: Cl2 | D11: 70.906 | E11: Ar | F11: 39.948
A12: Ethane | B12: =2*C_+6*H -> 30.06904 | C12: C2H6 | D12: 30.07 | E12: F | F12: 18.9984032
A13: Ethyl Chloride | B13: =B12-H+Cl -> 64.5141 | C13: C2H5Cl | D13: 64.515
A14: Ethylene | B14: =2*C_+4*H -> 28.05316 | C14: C2H4 | D14: 28.054
A15: Fluorine | B15: =2*F -> 37.9968064 | C15: F2 | D15: 37.996
A16: Helium | B16: 4.002602 | C16: He | D16: 4.02
A17: Hexane | B17: =6*C_+14*H -> 86.17536 | C17: C6H14 | D17: 86.17
A18: Hydrogen Chloride | B18: =H+Cl -> 36.46094 | C18: HCl | D18: 36.461
A19: Hydrogen Sulfide | B19: =2*H+S -> 34.08088 | C19: H2S | D19: 34.076
A20: Hydrogen | B20: =2*H -> 2.01588 | C20: H2O | D20: 2.016
A21: Isobutene | B21: =4*C_+8*H -> 56.10632 | C21: C4H8 | D21: 56.108
A22: Krypton | B22: =Kr -> 83.798 | C22: Kr | D22: 83.8
A23: Methane | B23: =C_+4*H -> 16.04246 | C23: CH4 | D23: 16.044
A24: Methyl Chloride | B24: =B23-H+Cl -> 50.48752 | C24: CH3Cl | D24: 50.488
A25: Neon | B25: =Ne -> 20.1797 | C25: Ne | D25: 20.179
A26: Nitric Oxide | B26: =N+O -> 30.0061 | C26: NO | D26: 30.006
A27: Nitrogen | B27: =2*N -> 28.0134 | C27: N2 | D27: 28.013
A28: Nitrogen Dioxide | B28: =B26+O -> 46.0055 | C28: NO2 | D28: =D26+O -> 46.0054
A29: Nitrous Oxide | B29: =B27+O -> 44.0128 | C29: N2O | D29: 44.012
A30: Octane | B30: =8*C_+18*H -> 114.22852 | C30: C8H18 | D30: 114.22
A31: Oxygen | B31: =2*O -> 31.9988 | C31: O2 | D31: 31.999
A32: Ozone | B32: =3*O -> 47.9982 | C32: O3 | D32: 47.998
A33: Pentane | B33: =5*C_+12*H -> 72.14878 | C33: C5H12 | D33: 72.15
A34: Propane | B34: =3*C_+8*H -> 44.09562 | C34: C3H8 | D34: 44.097
A35: Propylene | B35: =3*C_+9*H -> 45.10356 | C35: C3H6 | D35: 42.08
A36: Sulfur Dioxide | B36: =S+2*O -> 64.0638 | C36: SO2 | D36: 64.06
A37: Toluene | B37: =7*C_+8*H -> 92.13842 | C37: C7H8 | D37: 92.13
A38: Water | B38: =2*H+O -> 18.01528 | C38: H2O | D38: 18.02
A39: Xenon | B39: =Xe -> 131.293 | C39: Xe | D39: 131.3

Sheet dataTable
A1: Name | B1: molarMass
A2: Acetylene | B2: 26.038
A3: Air | B3: 28.966
A4: Ammonia | B4: 17.031
A5: Argon | B5: 39.948
A6: Benzene | B6: 78.114
A7: Butadiene | B7: 54.092
A8: Butane | B8: 58.124
A9: Carbon Dioxide | B9: 44.009
A10: Carbon Monoxide | B10: 28.01
A11: Chlorine | B11: 70.9
A12: Ethane | B12: 30.07
A13: Ethyl Chloride | B13: 64.512
A14: Ethylene | B14: 28.054
A15: Fluorine | B15: 37.996
A16: Helium | B16: 4.0026
A17: Hexane | B17: 86.178
A18: Hydrogen Chloride | B18: 36.458
A19: Hydrogen Sulfide | B19: 34.076
A20: Hydrogen | B20: 2.016
A21: Isobutene | B21: 56.108
A22: Krypton | B22: 83.798
A23: Methane | B23: 16.043
A24: Methyl Chloride | B24: 50.485
A25: Neon | B25: 20.18
A26: Nitric Oxide | B26: 30.006
A27: Nitrogen | B27: 28.014
A28: Nitrogen Dioxide | B28: 46.005
A29: Nitrous Oxide | B29: 44.013
A30: Octane | B30: 114.232
A31: Oxygen | B31: 31.998
A32: Ozone | B32: 47.997
A33: Pentane | B33: 72.151
A34: Propane | B34: 44.097
A35: Propylene | B35: 42.081
A36: Sulfur Dioxide | B36: 64.058
A37: Toluene | B37: 92.141
A38: Water | B38: 18.015
A39: Xenon | B39: 131.29

Sheet twoWayTable
A1: Substance | B1: Hydrogen
A2: Molar Mass | B2: =VLOOKUP(Substance,molarMassTable,2,FALSE) -> 2.016 | C2: kg/kmol
A3: Tmin | B3: 300 | C3: K
A4: Tmax | B4: 2500 | C4: K
A5: Tsteps | B5: 22 | I5: =" Density Table for " & Substance & " (kg/m" & CHAR(179) & ")" -> Density Table for Hydrogen (kg/m³)
A6: Pmin | B6: 100 | C6: kPa
A7: Pmax | B7: 10000 | C7: kPa | J7: =Pmin -> 100 | K7: =J7*pFactor -> 146.7799268 | L7: 215.443469 | M7: 316.227766 | N7: 464.1588834 | O7: 681.2920691 | P7: 1000 | Q7: 1467.799268 | R7: 2154.43469 | S7: 3162.27766 | T7: 4641.588834 | U7: 6812.920691 | V7: 10000
A8: Psteps | B8: 12 | I8: =Tmin -> 300 | J8: =J$7/(EngrGasConst*$I8) -> 0.08082295083 | K8: 0.118631868 | L8: 0.174127769 | M8: 0.2555846118 | N8: 0.3751469061 | O8: 0.550640354 | P8: 0.8082295083 | Q8: 1.18631868 | R8: 1.74127769 | S8: 2.555846118 | T8: 3.751469061 | U8: 5.50640354 | V8: 8.082295083
A9: deltaT | B9: =(Tmax-Tmin)/Tsteps -> 100 | I9: =I8+deltaT -> 400 | J9: 0.06061721312 | K9: 0.08897390103 | L9: 0.1305958268 | M9: 0.1916884589 | N9: 0.2813601796 | O9: 0.4129802655 | P9: 0.6061721312 | Q9: 0.8897390103 | R9: 1.305958268 | S9: 1.916884589 | T9: 2.813601796 | U9: 4.129802655 | V9: 6.061721312
A10: pFactor | B10: =(Pmax/Pmin)^(1/Psteps) -> 1.467799268 | I10: 500 | J10: 0.0484937705 | K10: 0.07117912082 | L10: 0.1044766614 | M10: 0.1533507671 | N10: 0.2250881436 | O10: 0.3303842124 | P10: 0.484937705 | Q10: 0.7117912082 | R10: 1.044766614 | S10: 1.533507671 | T10: 2.250881436 | U10: 3.303842124 | V10: 4.84937705
A11: EngrGasConst | B11: =Gas_Constant/Molar_Mass -> 4.124241071 | C11: kJ/kmol×K | I11: 600 | J11: 0.04041147542 | K11: 0.05931593402 | L11: 0.08706388451 | M11: 0.1277923059 | N11: 0.187573453 | O11: 0.275320177 | P11: 0.4041147542 | Q11: 0.5931593402 | R11: 0.8706388451 | S11: 1.277923059 | T11: 1.87573453 | U11: 2.75320177 | V11: 4.041147542
I12: 700 | J12: 0.0346384075 | K12: 0.05084222916 | L12: 0.07462618672 | M12: 0.1095362622 | N12: 0.1607772455 | O12: 0.2359887231 | P12: 0.346384075 | Q12: 0.5084222916 | R12: 0.7462618672 | S12: 1.095362622 | T12: 1.607772455 | U12: 2.359887231 | V12: 3.46384075
I13: 800 | J13: 0.03030860656 | K13: 0.04448695051 | L13: 0.06529791338 | M13: 0.09584422944 | N13: 0.1406800898 | O13: 0.2064901327 | P13: 0.3030860656 | Q13: 0.4448695051 | R13: 0.6529791338 | S13: 0.9584422944 | T13: 1.406800898 | U13: 2.064901327 | V13: 3.030860656
I14: 900 | J14: 0.02694098361 | K14: 0.03954395601 | L14: 0.05804258967 | M14: 0.08519487061 | N14: 0.1250489687 | O14: 0.1835467847 | P14: 0.2694098361 | Q14: 0.3954395601 | R14: 0.5804258967 | S14: 0.8519487061 | T14: 1.250489687 | U14: 1.835467847 | V14: 2.694098361
I15: 1000 | J15: 0.02424688525 | K15: 0.03558956041 | L15: 0.05223833071 | M15: 0.07667538355 | N15: 0.1125440718 | O15: 0.1651921062 | P15: 0.2424688525 | Q15: 0.3558956041 | R15: 0.5223833071 | S15: 0.7667538355 | T15: 1.125440718 | U15: 1.651921062 | V15: 2.424688525
I16: 1100 | J16: 0.02204262295 | K16: 0.03235414583 | L16: 0.04748939155 | M16: 0.06970489414 | N16: 0.1023127926 | O16: 0.150174642 | P16: 0.2204262295 | Q16: 0.3235414583 | R16: 0.4748939155 | S16: 0.6970489414 | T16: 1.023127926 | U16: 1.50174642 | V16: 2.204262295
I17: 1200 | J17: 0.02020573771 | K17: 0.02965796701 | L17: 0.04353194226 | M17: 0.06389615296 | N17: 0.09378672652 | O17: 0.1376600885 | P17: 0.2020573771 | Q17: 0.2965796701 | R17: 0.4353194226 | S17: 0.6389615296 | T17: 0.9378672652 | U17: 1.376600885 | V17: 2.020573771
I18: 1300 | J18: =J$7/(EngrGasConst*$I18) -> 0.01865145019 | K18: 0.02737658493 | L18: 0.04018333131 | M18: 0.05898106427 | N18: 0.08657236294 | O18: 0.1270708509 | P18: 0.1865145019 | Q18: 0.2737658493 | R18: 0.4018333131 | S18: 0.5898106427 | T18: 0.8657236294 | U18: 1.270708509 | V18: 1.865145019
I19: 1400 | J19: 0.01731920375 | K19: 0.02542111458 | L19: 0.03731309336 | M19: 0.05476813111 | N19: 0.08038862273 | O19: 0.1179943616 | P19: 0.1731920375 | Q19: 0.2542111458 | R19: 0.3731309336 | S19: 0.5476813111 | T19: 0.8038862273 | U19: 1.179943616 | V19: 1.731920375
I20: 1500 | J20: 0.01616459017 | K20: 0.02372637361 | L20: 0.0348255538 | M20: 0.05111692237 | N20: 0.07502938122 | O20: 0.1101280708 | P20: 0.1616459017 | Q20: 0.2372637361 | R20: 0.348255538 | S20: 0.5111692237 | T20: 0.7502938122 | U20: 1.101280708 | V20: 1.616459017
A21: =" Density Plot for " & Substance & " (kg/m" & CHAR(179) & ")" -> Density Plot for Hydrogen (kg/m³) | I21: 1600 | J21: 0.01515430328 | K21: 0.02224347526 | L21: 0.03264895669 | M21: 0.04792211472 | N21: 0.07034004489 | O21: 0.1032450664 | P21: 0.1515430328 | Q21: 0.2224347526 | R21: 0.3264895669 | S21: 0.4792211472 | T21: 0.7034004489 | U21: 1.032450664 | V21: 1.515430328
I22: 1700 | J22: 0.01426287368 | K22: 0.02093503554 | L22: 0.03072842983 | M22: 0.0451031668 | N22: 0.06620239519 | O22: 0.09717182718 | P22: 0.1426287368 | Q22: 0.2093503554 | R22: 0.3072842983 | S22: 0.451031668 | T22: 0.6620239519 | U22: 0.9717182718 | V22: 1.426287368
I23: 1800 | J23: 0.01347049181 | K23: 0.01977197801 | L23: 0.02902129484 | M23: 0.04259743531 | N23: 0.06252448435 | O23: 0.09177339233 | P23: 0.1347049181 | Q23: 0.1977197801 | R23: 0.2902129484 | S23: 0.4259743531 | T23: 0.6252448435 | U23: 0.9177339233 | V23: 1.347049181
I24: 1900 | J24: 0.01276151855 | K24: 0.01873134758 | L24: 0.02749385827 | M24: 0.04035546503 | N24: 0.05923372201 | O24: 0.08694321379 | P24: 0.1276151855 | Q24: 0.1873134758 | R24: 0.2749385827 | S24: 0.4035546503 | T24: 0.5923372201 | U24: 0.8694321379 | V24: 1.276151855
I25: 2000 | J25: 0.01212344262 | K25: 0.01779478021 | L25: 0.02611916535 | M25: 0.03833769178 | N25: 0.05627203591 | O25: 0.0825960531 | P25: 0.1212344262 | Q25: 0.1779478021 | R25: 0.2611916535 | S25: 0.3833769178 | T25: 0.5627203591 | U25: 0.825960531 | V25: 1.212344262
I26: 2100 | J26: 0.01154613583 | K26: 0.01694740972 | L26: 0.02487539557 | M26: 0.03651208741 | N26: 0.05359241515 | O26: 0.07866290771 | P26: 0.1154613583 | Q26: 0.1694740972 | R26: 0.2487539557 | S26: 0.3651208741 | T26: 0.5359241515 | U26: 0.7866290771 | V26: 1.154613583
I27: 2200 | J27: 0.01102131148 | K27: 0.01617707291 | L27: 0.02374469578 | M27: 0.03485244707 | N27: 0.05115639628 | O27: 0.075087321 | P27: 0.1102131148 | Q27: 0.1617707291 | R27: 0.2374469578 | S27: 0.3485244707 | T27: 0.5115639628 | U27: 0.75087321 | V27: 1.102131148
I28: 2300 | J28: 0.01054212402 | K28: 0.01547372192 | L28: 0.0227123177 | M28: 0.03333712328 | N28: 0.04893220514 | O28: 0.07182265487 | P28: 0.1054212402 | Q28: 0.1547372192 | R28: 0.227123177 | S28: 0.3333712328 | T28: 0.4893220514 | U28: 0.7182265487 | V28: 1.054212402
I29: 2400 | J29: 0.01010286885 | K29: 0.0148289835 | L29: 0.02176597113 | M29: 0.03194807648 | N29: 0.04689336326 | O29: 0.06883004425 | P29: 0.1010286885 | Q29: 0.148289835 | R29: 0.2176597113 | S29: 0.3194807648 | T29: 0.4689336326 | U29: 0.6883004425 | V29: 1.010286885
I30: 2500 | J30: 0.0096987541 | K30: 0.01423582416 | L30: 0.02089533228 | M30: 0.03067015342 | N30: 0.04501762873 | O30: 0.06607684248 | P30: 0.096987541 | Q30: 0.1423582416 | R30: 0.2089533228 | S30: 0.3067015342 | T30: 0.4501762873 | U30: 0.6607684248 | V30: 0.96987541
